bitfinex/quotes_ETHUSD_20220117
["timestamp","ask_amount","ask_price","bid_price","bid_amount"]
[1642402595370,0.00113684,3274.0,3273.4,0.00227369]
[1642402595969,0.00113684,3274.0,3273.4,2.61668664]
[1642402596371,0.00113684,3274.0,3273.5,0.00170527]
[1642402596569,0.60258253,3273.9,3273.5,0.00170527]
[1642402596769,0.00113684,3274.0,3273.5,0.00170527]
[1642402597169,0.00113684,3274.0,3273.6,1.53570977]
[1642402597368,0.00113684,3274.0,3273.7,4.2342925]
[1642402598018,0.00113684,3274.0,3273.7,6.84870545]
[1642402598216,0.00113684,3274.0,3273.7,2.61441295]
[1642402598816,0.00113684,3274.0,3273.8,2.61441295]
[1642402599516,0.00113684,3274.0,3273.5,0.00170527]
[1642402599918,0.00113684,3274.0,3273.4,3.92109256]
[1642402600117,0.00113684,3274.0,3273.4,0.00227369]
[1642402600319,0.00113684,3274.0,3273.5,0.00170527]
[1642402600521,0.00113684,3274.0,3273.4,3.93617912]
[1642402600922,0.00113684,3274.0,3273.5,0.00170527]
[1642402601775,0.00113684,3274.0,3273.5,2.61580227]
[1642402601973,0.00113684,3274.0,3273.5,2.614097]
[1642402602177,0.00113684,3274.0,3273.6,0.00113684]
[1642402603275,0.00113684,3274.0,3273.4,4.03958073]
[1642402603480,0.00113684,3274.0,3273.6,2.614097]
[1642402603876,0.00113684,3274.0,3273.6,6.54633782]
[1642402604075,0.00113684,3274.0,3273.5,3.40415887]
[1642402604277,0.00113684,3274.0,3273.6,4.17001205]
[1642402604475,0.00113684,3274.0,3273.6,4.17114889]
[1642402604877,0.00113684,3274.0,3273.6,6.78524589]
[1642402605078,0.00113684,3274.0,3273.6,2.61523384]
[1642402605277,0.00113684,3274.0,3273.6,2.54923384]
[1642402605518,0.00170527,3273.9,3273.7,2.54923384]
[1642402605814,0.00113684,3273.8,3273.7,2.54923384]
[1642402606221,0.00397896,3273.8,3273.7,2.54923384]
[1642402606817,0.00397896,3273.8,3273.7,21.48758493]
[1642402607419,0.00397896,3273.8,3273.7,21.78758493]
[1642402607620,0.00397896,3273.8,3273.7,22.78758493]
[1642402607819,0.00397896,3273.8,3273.7,56.19758493]
[1642402608419,0.00397896,3273.8,3273.7,56.64158493]
[1642402608820,0.00397896,3273.8,3273.7,19.09323384]
[1642402609020,0.00397896,3273.8,3273.7,23.01346703]
[1642402609671,0.00397896,3273.8,3273.7,35.66346703]
[1642402610270,0.00397896,3273.8,3273.7,31.74323384]
[1642402610871,0.00397896,3273.8,3273.7,30.44323384]
[1642402611279,0.00397896,3273.8,3273.7,34.36346703]
[1642402612271,0.00397896,3273.8,3273.7,21.71346703]
[1642402612673,0.00397896,3273.8,3273.7,28.36346703]
[1642402613125,0.00397896,3273.8,3273.7,21.71346703]
[1642402613723,0.00397896,3273.8,3273.7,33.41346703]
[1642402614124,0.00397896,3273.8,3273.7,29.49323384]
[1642402614525,0.00397896,3273.8,3273.7,30.79323384]
[1642402614725,0.00397896,3273.8,3273.7,33.29323384]
[1642402615125,0.00397896,3273.8,3273.7,37.21346703]
[1642402615324,0.00397896,3273.8,3273.7,33.41346703]
[1642402619274,0.00397896,3273.8,3273.7,32.96946703]
[1642402620172,0.00397896,3273.8,3273.7,21.26946703]
[1642402621528,0.00397896,3273.8,3273.7,17.34923384]
[1642402621730,0.00397896,3273.8,3273.7,24.34923384]
[1642402622527,0.00397896,3273.8,3273.7,30.54923384]
[1642402622727,0.00397896,3273.8,3273.7,48.45923384]
[1642402623326,0.00397896,3273.8,3273.7,30.54923384]
[1642402623929,0.00397896,3273.8,3273.7,28.26946703]
[1642402627077,0.00397896,3273.8,3273.7,46.17946703]
[1642402627915,0.00397896,3273.8,3273.7,47.92346703]
[1642402628716,0.00397896,3273.8,3273.7,46.62346703]
[1642402630529,0.00397896,3273.8,3273.7,47.92346703]
[1642402631122,0.00397896,3273.8,3273.7,46.92346703]
[1642402631322,0.00397896,3273.8,3273.7,46.62346703]
[1642402631523,0.00397896,3273.8,3273.7,47.92346703]
[1642402631768,0.00397896,3273.8,3273.7,46.92346703]
[1642402631966,0.00397896,3273.8,3273.7,47.62346703]
[1642402632173,0.00397896,3273.8,3273.7,47.92346703]
[1642402634971,0.00397896,3273.8,3273.7,46.92346703]
[1642402635168,0.00397896,3273.8,3273.7,48.47895527]
[1642402636220,9.1062808,3275.1,3274.4,1.19762943]
[1642402636519,0.00795792,3275.0,3273.9,17.91]
[1642402636717,0.00795792,3275.0,3273.8,9.3444226]
[1642402636718,0.00795792,3275.0,3274.1,17.91]
[1642402636919,0.0073895,3274.9,3274.1,17.91]
[1642402637322,0.00682108,3274.8,3274.3,0.61374923]
[1642402637521,0.00682108,3274.8,3274.4,1.50332112]
[1642402637720,0.00625265,3274.7,3274.4,1.50332112]
[1642402638121,0.00568423,3274.6,3274.4,1.50332112]
[1642402638420,0.00511581,3274.5,3274.4,1.50332112]
[1642402638824,0.00511581,3274.5,3274.3,0.61374923]
[1642402639275,0.00454738,3274.4,3274.3,0.61374923]
[1642402639473,0.00454738,3274.4,3274.3,17.26374923]
[1642402639875,0.00454738,3274.4,3274.3,16.65]
[1642402640071,0.00454738,3274.4,3274.2,3.92023319]
[1642402640472,0.00397896,3274.3,3274.2,3.92023319]
[1642402641171,0.00397896,3274.3,3274.1,1.36673818]
[1642402641572,0.00341054,3274.2,3273.9,1.55548824]
[1642402641973,0.00284211,3274.1,3273.8,3.02368824]
[1642402642377,0.00227369,3274.0,3273.8,3.02368824]
[1642402642774,0.00170527,3273.9,3273.8,4.5468625]
[1642402643419,0.00170527,3273.9,3273.8,26.7968625]
[1642402644720,0.00170527,3273.9,3273.8,28.86160745]
[1642402645421,0.00170527,3273.9,3273.8,30.41709569]
[1642402646022,0.00170527,3273.9,3273.8,28.89392143]
[1642402646221,0.00170527,3273.9,3273.8,27.33843319]
[1642402650272,0.00170527,3273.9,3273.8,32.98843319]
[1642402650718,0.00170527,3273.9,3273.8,27.33843319]
[1642402652326,0.00170527,3273.9,3273.8,28.90357807]
[1642402652926,0.00170527,3273.9,3273.8,27.33843319]
[1642402654369,0.00170527,3273.9,3273.8,29.95199199]
[1642402655470,0.00170527,3273.9,3273.8,47.86199199]
[1642402657376,5.1962856,3275.1,3275.0,1.54352621]
[1642402657377,4.4328,3275.1,3275.0,1.54352621]
[1642402657574,3.5445,3275.1,3274.0,5.49410564]
[1642402657778,0.00625265,3275.0,3274.0,5.49410564]
[1642402658223,0.00568423,3274.9,3274.0,5.49410564]
[1642402658724,0.00511581,3274.8,3274.0,5.49410564]
[1642402659123,0.00454738,3274.7,3274.2,1.56603287]
[1642402659326,0.00454738,3274.7,3274.3,4.12631217]
[1642402659525,1.537,3275.2,3274.3,4.12631217]
[1642402659526,0.00397896,3274.6,3274.4,1.21228604]
[1642402659825,0.00341054,3274.5,3274.4,1.21228604]
[1642402660225,0.00341054,3274.5,3274.4,24.56228604]
[1642402660628,0.00341054,3274.5,3274.4,3.82584484]
[1642402661226,0.00341054,3274.5,3274.4,17.17584484]
[1642402662072,0.00341054,3274.5,3274.4,21.12150352]
[1642402662272,0.00341054,3274.5,3274.4,41.94173671]
[1642402662471,0.00341054,3274.5,3274.4,42.24173671]
[1642402662673,16.0942,3275.7,3275.6,1.22867663]
[1642402662674,17.2847,3275.7,3275.6,1.22867663]
[1642402662874,0.01202709,3276.6,3274.8,17.91]
[1642402663077,0.00625265,3275.6,3275.3,0.7465645]
[1642402663274,0.00625265,3275.6,3274.9,18.91]
[1642402663472,0.00568423,3275.5,3275.0,0.3]
[1642402663872,0.00511581,3275.4,3275.0,0.3]
[1642402664274,0.00454738,3275.3,3275.1,1.12919]
[1642402664773,0.00397896,3275.2,3275.1,1.12919]
[1642402664972,0.00397896,3275.2,3275.1,5.57203938]
[1642402665174,0.00397896,3275.2,3275.1,30.32203938]
[1642402665922,0.00397896,3275.2,3275.1,34.24227257]
[1642402668623,0.00397896,3275.2,3275.1,3.92023319]
[1642402669023,6.60397896,3275.2,3275.1,3.92023319]
[1642402669476,7.52244358,3275.2,3275.1,3.92023319]
[1642402669670,7.52244358,3275.2,3274.8,0.13819997]
[1642402669671,1.06747356,3275.2,3274.8,0.13819997]
[1642402670071,0.00341054,3275.1,3274.8,0.13819997]
[1642402670471,0.00284211,3275.0,3274.8,0.13819997]
[1642402670875,0.00227369,3274.9,3274.8,0.13819997]
[1642402671172,0.00227369,3274.9,3274.8,5.73819997]
[1642402672074,0.00227369,3274.9,3274.8,0.13819997]
[1642402672282,0.00227369,3274.9,3274.5,0.13819997]
[1642402672477,0.00227369,3274.9,3274.1,5.48626606]
[1642402672478,0.76583569,3274.9,3274.1,5.48626606]
[1642402672777,0.30170527,3274.8,3274.2,0.00170527]
[1642402673221,0.00113684,3274.7,3274.2,0.00170527]
[1642402673426,0.00113684,3274.7,3274.3,1.39175749]
[1642402675722,0.00113684,3274.7,3274.2,0.00170527]
[1642402676123,0.00113684,3274.7,3274.0,0.00284212]
[1642402676774,0.00113684,3274.7,3274.0,1.51826392]
[1642402677176,0.00113684,3274.7,3274.1,0.0022737]
[1642402678075,0.30113684,3274.7,3274.1,0.0022737]
[1642402679576,0.30113684,3274.7,3274.1,2.61577137]
[1642402679975,0.30113684,3274.7,3274.1,0.0022737]
[1642402680821,0.30113684,3274.7,3274.1,2.61577137]
[1642402681222,0.72667981,3274.5,3274.1,2.61577137]
[1642402681423,1.49026321,3274.5,3274.1,2.61577137]
[1642402681823,1.49026321,3274.5,3274.1,0.0022737]
[1642402682223,1.49026321,3274.5,3274.0,0.00284212]
[1642402683124,1.49026321,3274.5,3274.2,2.61349767]
[1642402683323,1.79026321,3274.5,3274.2,2.61349767]
[1642402683527,1.79026321,3274.5,3274.3,0.00113685]
[1642402684475,1.79026321,3274.5,3274.1,0.0022737]
[1642402684675,1.0635834,3274.5,3274.1,0.0022737]
[1642402685274,0.3,3274.5,3273.9,0.00341054]
[1642402685474,0.30113684,3274.7,3273.9,3.885783]
[1642402685673,0.30113684,3274.7,3273.9,0.00341054]
[1642402685874,0.30113684,3274.7,3274.0,0.00284212]
[1642402686079,0.30113684,3274.7,3273.8,2.61349767]
[1642402686080,0.30113684,3274.7,3273.9,0.00341054]
[1642402686278,1.20413684,3274.7,3273.9,0.00341054]
[1642402688025,0.68780094,3274.3,3273.9,0.00341054]
[1642402688326,2.35983684,3274.7,3273.9,0.00341054]
[1642402689527,3.09998254,3274.7,3273.9,0.00341054]
[1642402689728,3.09998254,3274.7,3273.9,2.61690821]
[1642402690127,3.09998254,3274.7,3274.0,0.00284212]
[1642402692772,2.79998254,3274.7,3274.0,0.00284212]
[1642402692971,3.09998254,3274.7,3273.9,0.00341054]
[1642402693672,2.79998254,3274.7,3273.9,0.00341054]
[1642402694171,3.09998254,3274.7,3273.9,0.00341054]
[1642402694573,2.35983684,3274.7,3273.9,0.00341054]
[1642402696533,3.05671642,3274.7,3273.9,0.00341054]
[1642402697930,3.35671642,3274.7,3273.9,0.00341054]
[1642402698932,3.05671642,3274.7,3273.9,0.00341054]
[1642402701689,1.45683684,3274.7,3273.9,21.90868263]
[1642402702086,1.45683684,3274.7,3274.0,0.00284212]
[1642402702286,1.15683684,3274.7,3274.0,0.00284212]
[1642402703128,1.15683684,3274.7,3274.0,6.53657298]
[1642402703129,1.1557,3274.7,3274.0,6.53657298]
[1642402703531,1.1557,3274.7,3274.1,3.88550632]
[1642402703928,1.4557,3274.7,3274.1,0.0022737]
[1642402704335,3.3099,3274.9,3274.1,0.0022737]
[1642402704530,3.3099,3274.9,3274.1,2.61577137]
[1642402704734,0.00170527,3274.8,3274.1,2.61577137]
[1642402704930,0.00170527,3274.8,3274.1,20.52577137]
[1642402705130,0.00113684,3274.7,3274.1,20.52577137]
[1642402705330,0.00113684,3274.7,3274.1,2.61577137]
[1642402705531,0.73120915,3274.7,3274.1,6.53600456]
[1642402706132,0.73120915,3274.7,3274.1,2.61577137]
[1642402706982,0.73120915,3274.7,3274.1,0.0022737]
[1642402708179,0.73120915,3274.7,3274.0,0.00284212]
[1642402708381,0.00113684,3274.7,3274.0,0.00284212]
[1642402708587,0.00113684,3274.7,3274.0,2.61633979]
[1642402708783,0.00113684,3274.7,3274.1,17.91]
[1642402708984,0.00113684,3274.7,3274.2,0.444]
[1642402709184,0.00113684,3274.7,3274.3,17.91]
[1642402709382,0.00113684,3274.7,3274.3,17.91113685]
[1642402709783,0.00113684,3274.7,3274.4,0.65321305]
[1642402709983,0.00113684,3274.7,3274.4,18.56321305]
[1642402710421,0.00113684,3274.7,3274.4,17.91]
[1642402710724,0.00113684,3274.7,3274.4,24.44373086]
[1642402711323,0.00113684,3274.7,3274.4,6.53373086]
[1642402711527,0.00113684,3274.7,3274.5,6.53373086]
[1642402712025,0.00113684,3274.7,3274.5,2.61349767]
[1642402713030,0.00113684,3274.7,3274.4,6.53373086]
[1642402713430,0.00113684,3274.7,3274.6,26.56349767]
[1642402713630,0.00113684,3274.7,3274.6,32.86349767]
[1642402713830,0.00113684,3274.7,3274.6,26.56349767]
[1642402714497,0.00113684,3274.7,3274.6,30.48373086]
[1642402715698,0.00113684,3274.7,3274.6,49.39373086]
[1642402715901,0.00113684,3274.7,3274.6,50.13773086]
[1642402716500,0.00113684,3274.7,3274.6,56.43773086]
[1642402716702,0.00113684,3274.7,3274.6,57.16236443]
[1642402717000,0.00113684,3274.7,3274.6,50.13773086]
[1642402717404,0.65530592,3275.6,3274.6,50.13773086]
[1642402717405,0.64979915,3275.6,3274.7,29.05]
[1642402717602,0.64979915,3275.6,3274.9,1.14813502]
[1642402717801,0.00454739,3275.5,3275.0,3.89944439]
[1642402718024,0.00454739,3275.5,3274.9,1.14813502]
[1642402718224,0.00397897,3275.4,3274.9,1.14813502]
[1642402718629,0.00341054,3275.3,3274.9,1.14813502]
[1642402718829,0.00341054,3275.3,3275.0,6.50874627]
[1642402719031,0.00284212,3275.2,3275.0,2.61349767]
[1642402719230,0.00284212,3275.2,3275.0,6.59225391]
[1642402719431,0.0022737,3275.1,3275.0,20.71349767]
[1642402719729,0.0022737,3275.1,3275.0,18.1]
[1642402720934,0.69696178,3275.1,3274.8,0.444]
[1642402721134,0.69696178,3275.1,3274.6,0.45338238]
[1642402721333,0.00170527,3275.0,3274.5,1.2087]
[1642402721534,0.00170527,3275.0,3274.4,5.73162855]
[1642402721535,0.00170527,3275.0,3274.4,5.28762855]
[1642402721776,0.00113685,3274.9,3274.4,1.56362855]
[1642402721975,0.00113685,3274.9,3274.5,0.00113685]
[1642402722174,0.76514057,3275.0,3274.5,0.00113685]
[1642402722577,0.00113685,3274.9,3274.4,0.00170527]
[1642402723575,0.30113685,3274.9,3274.3,0.00227369]
[1642402724978,0.30113685,3274.9,3274.1,0.00341054]
[1642402726222,0.64848356,3274.2,3274.1,0.00341054]
[1642402726425,0.64848356,3274.2,3274.1,23.15341054]
[1642402727223,0.64848356,3274.2,3274.1,27.07327404]
[1642402730177,1.5271587,3274.8,3274.1,44.98327404]
[1642402730381,0.3,3274.7,3274.1,27.07327404]
[1642402730676,0.3,3274.7,3274.2,0.00284211]
[1642402730677,0.7635237,3274.6,3274.2,0.00284211]
[1642402731878,0.7635237,3274.6,3274.2,3.92270561]
[1642402732078,0.62864077,3274.4,3274.2,3.92270561]
[1642402732278,0.62864077,3274.4,3274.3,0.00227369]
[1642402732479,1.68034077,3274.4,3274.3,0.00227369]
[1642402734033,1.68034077,3274.4,3273.9,0.00454738]
[1642402735131,1.68034077,3274.4,3273.7,0.00568423]
[1642402735533,0.7636265,3274.3,3273.7,0.00568423]
[1642402735731,0.7636265,3274.3,3274.0,2.6137419]
[1642402736129,0.3,3274.2,3274.1,0.00341054]
[1642402737176,0.3,3274.2,3273.9,0.00454738]
[1642402737977,0.3,3274.2,3273.8,0.00511581]
[1642402738378,0.3,3274.2,3274.0,2.6137419]
[1642402738779,0.3,3274.2,3274.1,0.00341054]
[1642402739380,0.62864077,3274.4,3274.0,0.00397896]
[1642402739381,0.92864077,3274.4,3274.0,0.00397896]
[1642402739780,0.92864077,3274.4,3274.1,2.6137419]
[1642402740180,0.7635381,3274.6,3274.2,0.00284211]
[1642402740428,9.08563685,3274.9,3274.2,0.00284211]
[1642402740627,0.00113685,3274.9,3274.2,0.00284211]
[1642402741829,0.30113685,3274.9,3274.2,0.00284211]
[1642402742032,0.30113685,3274.9,3274.1,0.00341054]
[1642402742228,0.30113685,3274.9,3274.2,0.00284211]
[1642402742429,0.84018552,3274.5,3274.1,6.53701594]
[1642402742629,0.84018552,3274.5,3274.2,0.00284211]
[1642402743534,0.7635293,3274.6,3274.2,0.00284211]
[1642402743930,1.0635293,3274.6,3274.2,0.00284211]
[1642402744575,1.76678094,3274.6,3274.2,0.00284211]
[1642402748028,1.0635293,3274.6,3274.2,0.00284211]
[1642402750328,2.1583293,3274.6,3274.2,0.00284211]
[1642402750730,0.80073637,3274.5,3274.2,0.00284211]
[1642402750929,0.80073637,3274.5,3273.9,0.00454738]
[1642402751978,0.80073637,3274.5,3273.8,0.00511581]
[1642402752880,0.80073637,3274.5,3274.0,2.6137419]
[1642402753279,0.80073637,3274.5,3274.1,0.00341054]
[1642402753879,0.80073637,3274.5,3274.0,0.00397896]
[1642402754679,0.80073637,3274.5,3273.8,0.00511581]
[1642402754880,0.62415719,3273.9,3273.8,0.00511581]
[1642402755080,0.62415719,3273.9,3273.8,9.60511581]
[1642402755279,1.42495719,3273.9,3273.7,0.00568423]
[1642402755533,1.42495719,3273.9,3273.8,0.00511581]
[1642402755534,1.72495719,3273.9,3273.8,0.00511581]
[1642402755730,1.72495719,3273.9,3273.7,0.00568423]
[1642402755933,1.72495719,3273.9,3273.5,0.00682108]
[1642402756128,1.52495719,3273.9,3273.5,0.00682108]
[1642402756332,0.7638509,3273.8,3273.5,0.00682108]
[1642402757127,1.0638509,3273.8,3273.5,0.00682108]
[1642402764635,0.7638509,3273.8,3273.5,0.00682108]
[1642402765532,0.7638509,3273.8,3273.5,3.90660592]
[1642402765932,2.2913419,3274.5,3273.7,20.03679398]
[1642402766135,1.1902,3274.6,3273.8,22.20379334]
[1642402766333,1.1902,3274.6,3273.9,0.444]
[1642402766531,3.7172,3274.7,3273.9,0.44854738]
[1642402766788,3.7172,3274.7,3274.0,17.91397896]
[1642402766987,0.62809476,3274.9,3274.0,18.35797896]
[1642402767183,8.2599,3275.1,3274.0,18.35797896]
[1642402767184,8.5599,3275.1,3274.1,0.00341054]
[1642402767384,0.3,3274.9,3274.1,0.00341054]
[1642402767585,0.7634766,3274.9,3274.1,0.00341054]
[1642402767785,0.3,3274.8,3274.1,0.00341054]
[1642402768185,0.3,3274.8,3274.1,4.12406705]
[1642402768485,0.3,3274.8,3274.2,0.00284211]
[1642402769085,0.3,3274.8,3274.1,0.00341054]
[1642402770085,0.3,3274.8,3274.1,2.61715108]
[1642402770532,0.3,3274.8,3274.2,0.00284211]
[1642402770730,0.3,3274.8,3274.2,4.05944673]
[1642402771129,0.3,3274.8,3274.3,0.00227369]
[1642402771729,0.3,3274.8,3274.3,2.61601423]
[1642402772129,0.3,3274.8,3274.4,0.00170527]
[1642402772730,1.5272413,3274.7,3274.3,0.00227369]
[1642402772932,1.5272413,3274.7,3274.3,2.61601423]
[1642402773333,1.5272413,3274.7,3274.4,0.00170527]
[1642402774190,0.63864123,3274.3,3274.2,0.00284211]
[1642402774884,0.63864123,3274.3,3273.9,0.00454738]
[1642402775985,0.7635902,3274.5,3274.0,2.61374054]
[1642402776386,0.7635902,3274.5,3274.1,0.00341054]
[1642402778054,0.83989339,3274.4,3273.9,0.00454738]
[1642402778242,0.83989339,3274.4,3274.1,2.61374054]
[1642402778541,0.83989339,3274.4,3274.2,0.00284211]
[1642402779344,0.83989339,3274.4,3274.1,0.00341054]
[1642402779547,0.83989339,3274.4,3274.2,2.61374054]
[1642402780045,0.7635902,3274.5,3274.3,10.40227369]
[1642402780444,0.7635902,3274.5,3274.4,0.00170527]
[1642402780644,1.0635902,3274.5,3274.4,0.00170527]
[1642402781543,1.0635902,3274.5,3274.4,2.61544581]
[1642402781544,1.8006723,3274.5,3274.4,2.61544581]
[1642402781785,1.0370821,3274.5,3274.4,10.91544581]
[1642402781984,1.0635104,3274.7,3274.4,10.91544581]
[1642402782385,1.0635104,3274.7,3274.5,0.00113684]
[1642402783586,3.89460527,3275.0,3274.5,2.61487738]
[1642402783787,0.00170527,3275.0,3274.5,2.61487738]
[1642402783985,0.00113685,3274.9,3274.7,1.31570601]
[1642402784187,0.00113685,3274.9,3274.5,21.65857738]
[1642402784386,1.16891736,3275.8,3274.6,30.15]
[1642402784587,0.65632037,3275.7,3274.6,30.86699513]
[1642402784790,0.66086776,3275.7,3274.7,0.00113685]
[1642402784988,0.96086776,3275.7,3274.7,0.00113685]
[1642402786136,0.6946456,3275.1,3274.7,6.53503394]
[1642402786533,0.30454739,3275.7,3274.7,6.53503394]
[1642402786738,1.06784819,3275.7,3274.7,6.53503394]
[1642402786934,1.06784819,3275.7,3274.7,2.61487739]
[1642402787534,4.33173076,3275.6,3274.7,2.61487739]
[1642402787732,1.5268933,3275.4,3274.7,2.61487739]
[1642402787933,0.7634031,3275.2,3274.7,2.61487739]
[1642402788135,0.3,3275.2,3274.7,2.61487739]
[1642402788333,0.00113685,3275.1,3274.7,2.61487739]
[1642402788533,0.00113685,3275.1,3274.7,0.00113685]
[1642402788733,0.85732007,3275.2,3274.7,0.00113685]
[1642402789032,0.85732007,3275.2,3274.3,21.80556108]
[1642402789033,0.76456825,3275.1,3274.5,0.00227369]
[1642402789283,1.06456825,3275.1,3274.5,0.00227369]
[1642402789482,1.06456825,3275.1,3274.5,2.61374054]
[1642402789483,0.00113685,3275.1,3274.5,2.61374054]
[1642402789685,0.00113685,3275.1,3274.5,20.52374054]
[1642402789886,0.00113685,3275.1,3274.6,1.44570527]
[1642402790085,0.00113685,3275.1,3274.7,17.91]
[1642402790281,0.00113685,3275.1,3274.8,4.5144466]
[1642402790482,0.00113685,3275.1,3274.9,17.91]
[1642402790682,0.00113685,3275.1,3275.0,35.61132808]
[1642402790881,0.00113685,3275.1,3275.0,34.76898946]
[1642402791882,0.00113685,3275.1,3275.0,35.21298946]
[1642402792930,0.00113685,3275.1,3275.0,37.82673]
[1642402793135,0.00113685,3275.1,3275.0,33.20774054]
[1642402796133,0.00113685,3275.1,3275.0,32.76374054]
[1642402796534,0.00113685,3275.1,3275.0,2.61374054]
[1642402797586,0.00113685,3275.1,3274.7,0.00113685]
[1642402798682,0.76460885,3275.1,3274.7,0.00113685]
[1642402799083,1.06460885,3275.1,3274.7,0.00113685]
[1642402799884,0.76460885,3275.1,3274.7,0.00113685]
[1642402800285,1.06460885,3275.1,3274.7,0.00113685]
[1642402802639,1.0593383,3275.1,3274.7,0.00113685]
[1642402804901,1.0593383,3275.1,3274.1,2.61374054]
[1642402804902,11.67096232,3275.0,3274.1,2.61374054]
[1642402805101,0.76365,3274.8,3274.1,2.61374054]
[1642402805305,0.763642,3274.6,3274.1,2.61374054]
[1642402805502,4.40225522,3274.5,3274.1,2.61374054]
[1642402806103,1.063642,3274.6,3274.1,2.61374054]
[1642402806104,0.635048,3274.2,3274.1,2.61374054]
[1642402806304,0.635048,3274.2,3273.8,2.61374054]
[1642402806504,0.3,3274.2,3273.8,2.61374054]
[1642402806703,0.3,3274.2,3273.9,0.00454738]
[1642402806906,0.7636461,3274.3,3273.9,0.00454738]
[1642402807103,3.1882,3274.8,3273.9,0.00454738]
[1642402807503,3.4882,3274.8,3273.9,0.73799569]
[1642402807703,0.7635049,3274.5,3273.9,0.73344831]
[1642402807936,1.0635049,3274.5,3274.0,0.00397896]
[1642402808136,1.0635049,3274.5,3274.0,2.6177195]
[1642402808533,1.0635049,3274.5,3274.1,0.00341054]
[1642402809135,1.0635049,3274.5,3274.1,2.61715108]
[1642402809535,1.0635049,3274.5,3274.3,0.54654305]
[1642402809735,1.0635049,3274.5,3274.3,1.09309144]
[1642402809736,0.73979926,3274.4,3274.3,1.09309144]
[1642402810138,1.03979926,3274.4,3274.3,1.09309144]
[1642402810546,1.03979926,3274.4,3274.3,13.15683198]
[1642402811138,1.03979926,3274.4,3274.3,10.54309144]
[1642402811537,0.73979926,3274.4,3274.3,10.54309144]
[1642402811786,0.7635049,3274.5,3274.3,10.54309144]
[1642402812188,1.0635049,3274.5,3274.4,0.00170527]
[1642402813193,0.7635049,3274.5,3274.4,2.61544581]
[1642402813389,1.0635049,3274.5,3274.4,2.61544581]
[1642402813687,0.7635049,3274.5,3274.4,2.61544581]
[1642402814888,1.0635049,3274.5,3274.4,3.70853725]
[1642402821786,1.3635049,3274.5,3274.4,3.70853725]
[1642402822086,0.3,3274.3,3273.8,1.51851782]
[1642402822285,0.3,3274.3,3273.7,1.56362855]
[1642402822490,22.3,3274.3,3273.4,3.8607]
[1642402822690,5.1954544,3274.2,3273.4,3.8607]
[1642402822934,0.3,3274.1,3273.5,0.0022737]
[1642402823135,0.80236065,3274.0,3273.5,0.0022737]
[1642402823333,5.50673354,3273.9,3273.4,0.00284212]
[1642402823539,5.50673354,3273.9,3272.8,8.97362855]
[1642402823540,13.15,3273.8,3272.8,8.97362855]
[1642402823734,5.81651998,3273.7,3272.8,8.97362855]
[1642402823934,5.81651998,3273.7,3272.9,0.00284212]
[1642402823935,7.11822525,3273.7,3272.9,0.00284212]
[1642402824234,0.00113685,3273.6,3272.9,0.00284212]
[1642402824435,1.5280188,3273.5,3272.9,0.00284212]
[1642402824634,0.82071389,3273.4,3272.9,0.00284212]
[1642402824835,5.38985491,3273.4,3272.9,0.00284212]
[1642402825035,2.12071389,3273.4,3272.9,0.00284212]
[1642402825535,4.41282929,3273.4,3272.9,0.00284212]
[1642402825735,4.41282929,3273.4,3272.3,1.56362855]
[1642402825736,0.25938725,3273.1,3272.4,0.00568424]
[1642402825936,0.7640228,3273.0,3272.4,0.00568424]
[1642402826138,5.02982346,3272.9,3272.4,0.00568424]
[1642402826988,0.73786683,3272.8,3272.4,0.00568424]
[1642402827188,4.35425319,3272.7,3272.3,0.00625266]
[1642402827588,0.7641278,3272.6,3272.3,0.00625266]
[1642402827988,4.27341016,3272.5,3272.3,0.00625266]
[1642402828193,0.7641278,3272.6,3272.3,0.00625266]
[1642402828388,0.3,3272.5,3272.3,0.00625266]
[1642402828589,0.7641278,3272.6,3272.3,0.00625266]
[1642402832738,0.3,3272.5,3272.3,0.00625266]
[1642402832939,4.51072193,3272.5,3272.3,0.00625266]
[1642402833138,4.81072193,3272.5,3272.3,0.00625266]
[1642402833339,4.24331674,3272.4,3272.3,0.00625266]
[1642402833539,0.6,3272.5,3272.3,0.00625266]
[1642402836502,0.3,3272.5,3272.3,0.00625266]
[1642402836905,1.0641278,3272.6,3272.3,0.00625266]
[1642402837303,0.7641278,3272.6,3272.3,0.00625266]
[1642402837702,4.9484861,3272.6,3272.3,0.00625266]
[1642402837941,0.7641278,3272.6,3272.3,0.00625266]
[1642402838539,1.0641278,3272.6,3272.3,0.00625266]
[1642402846540,5.28373538,3272.6,3272.3,0.00625266]
[1642402846740,1.0641278,3272.6,3272.2,0.0089]
[1642402846940,0.00113685,3272.5,3272.2,0.0089]
[1642402849388,0.00113685,3272.5,3272.3,2.61490318]
[1642402850488,0.00113685,3272.5,3272.2,0.0089]
[1642402851292,0.00113685,3272.5,3272.3,2.614985]
[1642402856892,0.00113685,3272.5,3272.2,0.0089]
[1642402857689,0.00113685,3272.5,3272.3,2.61491041]
[1642402860940,1.0249772,3272.6,3272.3,2.61491041]
[1642402862139,1.0249772,3272.6,3272.2,0.0089]
[1642402862337,0.3,3272.5,3272.2,0.0089]
[1642402862537,0.3,3272.5,3272.3,0.00113685]
[1642402862743,1.0249772,3272.6,3272.3,0.00113685]
[1642402866790,1.06427965,3272.6,3272.3,0.00113685]
[1642402867948,0.3,3272.5,3272.3,0.00113685]
[1642402869738,1.06427965,3272.6,3272.3,0.00113685]
[1642402869937,1.0249772,3272.6,3272.3,0.00113685]
[1642402870939,0.3,3272.5,3272.3,0.00113685]
[1642402871987,1.0249772,3272.6,3272.3,0.00113685]
[1642402872390,5.22317354,3272.6,3272.3,0.00113685]
[1642402872888,1.0249772,3272.6,3272.3,0.00113685]
[1642402873590,0.7249772,3272.6,3272.5,1.39199668]
[1642402873990,5.86454546,3273.2,3272.5,1.39199668]
[1642402874194,2.84914546,3273.2,3272.5,1.39199668]
[1642402874392,0.00341054,3273.1,3272.5,1.39199668]
[1642402874691,2.84422768,3273.2,3272.8,0.83904862]
[1642402874990,1.60272768,3273.2,3272.9,0.00113685]
[1642402875190,1.90272768,3273.2,3272.9,0.00113685]
[1642402877538,1.90272768,3273.2,3272.6,0.00284212]
[1642402877740,1.76200965,3273.2,3272.6,0.00284212]
[1642402877941,1.76200965,3273.2,3272.7,0.79360483]
[1642402878243,1.76200965,3273.2,3272.8,0.00170527]
[1642402878439,1.79367966,3273.2,3272.8,0.00170527]
[1642402878640,1.79367966,3273.2,3272.6,0.00284212]
[1642402878840,1.62129162,3273.2,3272.6,0.00284212]
[1642402879488,1.62129162,3273.2,3272.6,0.60940219]
[1642402879890,1.57454995,3273.2,3272.7,0.0022737]
[1642402880895,4.24818158,3273.1,3272.7,0.0022737]
[1642402881391,4.54818158,3273.1,3272.4,0.00397897]
[1642402882794,4.54818158,3273.1,3272.5,2.61525065]
[1642402883240,0.3,3273.1,3272.6,0.00284212]
[1642402883446,4.50175674,3273.1,3272.6,0.00284212]
[1642402883640,0.3,3273.1,3272.6,0.00284212]